fUST/lending_fUST_20240906
["ID","MTS","AMOUNT","RATE_DAILY","PERIOD"]
[337371667,1725633055448,-2862.51,0.00019726,2]
[337371668,1725633055460,-169.84652114,0.00019726,2]
[337371669,1725633055469,-500.0,0.00019726,2]
[337371670,1725633055479,-500.0,0.00019726,2]
[337371671,1725633055489,-549.29,0.00019726,2]
[337371672,1725633055499,-75953.49313834,0.0001999,2]
[337371673,1725633055509,-562.06905482,0.0002,2]
[337371674,1725633055520,-500.0,0.0002,2]
[337371675,1725633055530,-500.0,0.0002,2]
[337371676,1725633055540,-151.0,0.0002,2]
[337371677,1725633055549,-160.733394,0.0002,2]
[337371678,1725633055559,-500.0,0.0002,2]
[337371679,1725633055569,-160.733394,0.0002,2]
[337371680,1725633055579,-151.0,0.0002,2]
[337371681,1725633055588,-556.09,0.0002,2]
[337371682,1725633055599,-500.0,0.0002,2]
[337371683,1725633055608,-500.0,0.0002,2]
[337371684,1725633055618,-512.45194907,0.0002,2]
[337371685,1725633055629,-500.0,0.0002,2]
[337371686,1725633055639,-500.0,0.0002,2]
[337371687,1725633055648,-500.0,0.0002,2]
[337371688,1725633055657,-500.0,0.0002,2]
[337371689,1725633055667,-615.56,0.0002,2]
[337371690,1725633055676,-500.0,0.0002,2]
[337371691,1725633055686,-1254.49,0.0002,2]
[337371692,1725633055696,-500.0,0.0002,2]
[337371693,1725633055706,-500.0,0.0002,2]
[337371694,1725633055716,-500.0,0.0002,2]
[337371695,1725633055726,-500.0,0.0002,2]
[337371696,1725633055736,-500.0,0.0002,2]
[337371697,1725633055747,-500.0,0.0002,2]
[337371698,1725633055757,-500.0,0.0002,2]
[337371699,1725633055768,-1001.98,0.0002,2]
[337371700,1725633055778,-500.0,0.0002,2]
[337371701,1725633055787,-500.0,0.0002,2]
[337371702,1725633055796,-642.04799158,0.0002,2]
[337371703,1725633055806,-500.0,0.0002,2]
[337371704,1725633055815,-574.3,0.0002,2]
[337371705,1725633055826,-500.0,0.0002,2]
[337371706,1725633055837,-500.0,0.0002,2]
[337371707,1725633055846,-500.0,0.0002,2]
[337371708,1725633055856,-500.0,0.0002,2]
[337371709,1725633055866,-500.0,0.0002,2]
[337371710,1725633055876,-500.0,0.0002,2]
[337371711,1725633055885,-500.0,0.0002,2]
[337371712,1725633055895,-500.0,0.0002,2]
[337371713,1725633055904,-500.0,0.0002,2]
[337371714,1725633055918,-500.0,0.0002,2]
[337371715,1725633055927,-181.26722629,0.0002,2]
[337371716,1725633055937,-1066.78,0.0002,2]
[337371717,1725633055948,-549.8286483,0.0002,2]
[337371718,1725633055958,-500.0,0.0002,2]
[337371719,1725633055971,-679.51,0.0002,2]
[337371720,1725633055982,-571.74013912,0.0002,2]
[337371721,1725633055994,-500.0,0.0002,2]
[337371722,1725633056003,-500.0,0.0002,2]
[337371723,1725633056013,-512.73234518,0.0002,2]
[337371724,1725633056026,-1480.16,0.0002,2]
[337371725,1725633056036,-238.0867747,0.0002,2]
[337371726,1725633056047,-500.0,0.0002,2]
[337371727,1725633056057,-500.0,0.0002,2]
[337371728,1725633056067,-533.57,0.0002,2]
[337371729,1725633056077,-500.0,0.0002,2]
[337371730,1725633056088,-500.0,0.0002,2]
[337371731,1725633056098,-500.0,0.0002,2]
[337371732,1725633056109,-939.26,0.0002,2]
[337371733,1725633056118,-570.84,0.0002,2]
[337371734,1725633056128,-522.66,0.0002,2]
[337371735,1725633056138,-500.0,0.0002,2]
[337371736,1725633056148,-3429.33490001,0.0002,2]
[337371737,1725633056158,-960.52,0.0002,2]
[337371738,1725633056168,-530.57,0.0002,2]
[337371739,1725633056178,-548.63,0.0002,2]
[337371740,1725633056191,-350.27003836,0.0002,2]
[337371741,1725633056201,-500.0,0.0002,2]
[337371742,1725633056210,-166.70939272,0.0002,2]
[337371743,1725633056221,-514.5965296,0.0002,2]
[337371744,1725633056230,-500.0,0.0002,2]
[337371745,1725633056239,-500.0,0.0002,2]
[337371746,1725633056250,-500.0,0.0002,2]
[337371747,1725633056259,-516.52,0.0002,2]
[337371748,1725633056270,-500.0,0.0002,2]
[337371749,1725633056281,-151.0,0.0002,2]
[337371750,1725633056291,-500.0,0.0002,2]
[337371751,1725633056302,-500.0,0.0002,2]
[337371752,1725633056312,-500.0,0.0002,2]
[337371753,1725633056322,-500.0,0.0002,2]
[337371754,1725633056333,-1450.39,0.0002,2]
[337371755,1725633056343,-500.0,0.0002,2]
[337371756,1725633056353,-500.0,0.0002,2]
[337371757,1725633056364,-500.0,0.0002,2]
[337371758,1725633056374,-784.65,0.0002,2]
[337371759,1725633056384,-500.0,0.0002,2]
[337371760,1725633056394,-500.0,0.0002,2]
[337371761,1725633056404,-1351.9,0.0002,2]
[337371762,1725633056414,-626.01,0.0002,2]
[337371763,1725633056424,-500.0,0.0002,2]
[337371764,1725633056434,-500.0,0.0002,2]
[337371765,1725633056444,-572.81,0.0002,2]
[337371766,1725633056453,-1291.72,0.0002,2]
[337371767,1725633056463,-500.0,0.0002,2]
[337371768,1725633056472,-151.0,0.0002,2]
[337371769,1725633056482,-569.27,0.0002,2]
[337371770,1725633056492,-500.0,0.0002,2]
[337371771,1725633056502,-1369.609796,0.0002,2]
[337371772,1725633056512,-509.56827234,0.0002,2]
[337371773,1725633056525,-1369.609796,0.0002,2]
[337371774,1725633056535,-500.0,0.0002,2]
[337371775,1725633056544,-151.0,0.0002,2]
[337371776,1725633056554,-500.0,0.0002,2]
[337371777,1725633056563,-670.98,0.0002,2]
[337371778,1725633056573,-500.0,0.0002,2]
[337371779,1725633056582,-151.0,0.0002,2]
[337371780,1725633056591,-540.59,0.0002,2]
[337371781,1725633056601,-1013.06,0.0002,2]
[337371782,1725633056611,-503.06,0.0002,2]
[337371783,1725633056622,-500.0,0.0002,2]
[337371784,1725633056631,-542.06,0.0002,2]
[337371785,1725633056641,-669.88,0.0002,2]
[337371786,1725633056651,-606.31,0.0002,2]
[337371787,1725633056660,-500.0,0.0002,2]
[337371788,1725633056670,-500.0,0.0002,2]
[337371789,1725633056680,-206.369492,0.0002,2]
[337371790,1725633056690,-206.369492,0.0002,2]
[337371791,1725633056700,-500.0,0.0002,2]
[337371792,1725633056711,-500.0,0.0002,2]
[337371793,1725633056720,-500.0,0.0002,2]
[337371794,1725633056777,-500.0,0.0002,2]
[337371795,1725633056788,-654.76,0.0002,2]
[337371796,1725633056798,-500.0,0.0002,2]
[337371797,1725633056808,-500.0,0.0002,2]
[337371798,1725633056818,-151.0,0.0002,2]
[337371799,1725633056828,-500.0,0.0002,2]
[337371800,1725633056838,-500.0,0.0002,2]
[337371801,1725633056847,-500.0,0.0002,2]
[337371802,1725633056857,-500.0,0.0002,2]
[337371803,1725633056867,-500.0,0.0002,2]
[337371804,1725633056877,-500.0,0.0002,2]
[337371805,1725633056887,-838.95,0.0002,2]
[337371806,1725633056897,-530.03,0.0002,2]
[337371807,1725633056907,-500.0,0.0002,2]
[337371808,1725633056917,-466.9448753,0.0002,2]
[337371809,1725633056928,-500.0,0.0002,2]
[337371810,1725633056938,-500.0,0.0002,2]
[337371811,1725633056948,-887.2,0.0002,2]
[337371812,1725633056957,-500.0,0.0002,2]
[337371813,1725633056968,-1319.15,0.0002,2]
[337371814,1725633056978,-500.0,0.0002,2]
[337371815,1725633056988,-733.76,0.0002,2]
[337371816,1725633056999,-778.88,0.0002,2]
[337371817,1725633057009,-500.0,0.0002,2]
[337371818,1725633057020,-151.0,0.0002,2]
[337371819,1725633057030,-808.090116,0.0002,2]
[337371820,1725633057040,-1079.32,0.0002,2]
[337371821,1725633057052,-808.090116,0.0002,2]
[337371822,1725633057062,-500.0,0.0002,2]
[337371823,1725633057071,-151.0,0.0002,2]
[337371824,1725633057080,-500.0,0.0002,2]
[337371825,1725633057090,-216.731902,0.0002,2]
[337371826,1725633057100,-500.0,0.0002,2]
[337371827,1725633057109,-500.0,0.0002,2]
[337371828,1725633057119,-500.0,0.0002,2]
[337371829,1725633057128,-500.0,0.0002,2]
[337371830,1725633057137,-500.0,0.0002,2]
[337371831,1725633057147,-500.0,0.0002,2]
[337371832,1725633057158,-500.0,0.0002,2]
[337371833,1725633057167,-604.59,0.0002,2]
[337371834,1725633057177,-500.0,0.0002,2]
[337371835,1725633057188,-500.0,0.0002,2]
[337371836,1725633057198,-500.0,0.0002,2]
[337371837,1725633057207,-1694.83,0.0002,2]
[337371838,1725633057219,-500.0,0.0002,2]
[337371839,1725633057228,-500.0,0.0002,2]
[337371840,1725633057237,-1172.36,0.0002,2]
[337371841,1725633057247,-500.0,0.0002,2]
[337371842,1725633057257,-500.0,0.0002,2]
[337371843,1725633057266,-500.0,0.0002,2]
[337371844,1725633057278,-509.14129153,0.0002,2]
[337371845,1725633057288,-500.0,0.0002,2]
[337371846,1725633057298,-1096.18,0.0002,2]
[337371847,1725633057307,-500.0,0.0002,2]
[337371848,1725633057316,-500.0,0.0002,2]
[337371849,1725633057326,-1295.54,0.0002,2]
[337371850,1725633057336,-500.0,0.0002,2]
[337371851,1725633057346,-500.0,0.0002,2]
[337371852,1725633057355,-500.0,0.0002,2]
[337371853,1725633057365,-500.0,0.0002,2]
[337371854,1725633057375,-542.16,0.0002,2]
[337371855,1725633057384,-824.9,0.0002,2]
[337371856,1725633057394,-500.0,0.0002,2]
[337371857,1725633057405,-487.37135,0.0002,2]
[337371858,1725633057415,-500.0,0.0002,2]
[337371859,1725633057424,-151.0,0.0002,2]
[337371860,1725633057434,-487.37135,0.0002,2]
[337371861,1725633057443,-500.0,0.0002,2]
[337371862,1725633057453,-500.0,0.0002,2]
[337371863,1725633057463,-208.211729,0.0002,2]
[337371864,1725633057472,-1372.26,0.0002,2]
[337371865,1725633057482,-208.211729,0.0002,2]
[337371866,1725633057492,-500.0,0.0002,2]
[337371867,1725633057502,-875.93,0.0002,2]
[337371868,1725633057512,-500.0,0.0002,2]
[337371869,1725633057522,-500.0,0.0002,2]
[337371870,1725633057531,-193.595704,0.0002,2]
[337371871,1725633057540,-500.0,0.0002,2]
[337371872,1725633057549,-938.14,0.0002,2]
[337371873,1725633057559,-500.0,0.0002,2]
[337371874,1725633057568,-538.21,0.0002,2]
[337371875,1725633057578,-500.0,0.0002,2]
[337371876,1725633057587,-1940.83,0.0002,2]
[337371877,1725633057597,-967.41,0.0002,2]
[337371878,1725633057607,-500.0,0.0002,2]
[337371879,1725633057617,-500.0,0.0002,2]
[337371880,1725633057628,-500.0,0.0002,2]
[337371881,1725633057640,-1123.56,0.0002,2]
[337371882,1725633057650,-500.0,0.0002,2]
[337371883,1725633057661,-1551.08,0.0002,2]
[337371884,1725633057672,-1400.39,0.0002,2]
[337371885,1725633057682,-895.372438,0.0002,2]
[337371886,1725633057692,-500.0,0.0002,2]
[337371887,1725633057701,-500.0,0.0002,2]
[337371888,1725633057711,-895.372438,0.0002,2]
[337371889,1725633057721,-872.73,0.0002,2]
[337371890,1725633057731,-500.0,0.0002,2]
[337371891,1725633057741,-500.0,0.0002,2]
[337371892,1725633057751,-151.0,0.0002,2]
[337371893,1725633057760,-500.0,0.0002,2]
[337371894,1725633057771,-1118.58,0.0002,2]
[337371895,1725633057781,-500.0,0.0002,2]
[337371896,1725633057791,-1742.36,0.0002,2]
[337371897,1725633057803,-1196.57,0.0002,2]
[337371898,1725633057813,-588.87,0.0002,2]
[337371899,1725633057823,-500.0,0.0002,2]
[337371900,1725633057834,-1193.407379,0.0002,2]
[337371901,1725633057844,-500.0,0.0002,2]
[337371902,1725633057853,-1205.47,0.0002,2]
[337371903,1725633057863,-1193.407379,0.0002,2]
[337371904,1725633057873,-151.0,0.0002,2]
[337371905,1725633057882,-1576.49,0.0002,2]
[337371906,1725633057892,-669.78,0.0002,2]
[337371907,1725633057901,-500.0,0.0002,2]
[337371908,1725633057911,-1881.02,0.0002,2]
[337371909,1725633057925,-500.0,0.0002,2]
[337371910,1725633057934,-500.0,0.0002,2]
[337371911,1725633057944,-2921.03,0.0002,2]
[337371912,1725633057954,-500.0,0.0002,2]
[337371913,1725633057966,-500.0,0.0002,2]
[337371914,1725633057975,-500.0,0.0002,2]
[337371915,1725633057984,-500.0,0.0002,2]
[337371916,1725633057995,-500.0,0.0002,2]
[337371917,1725633058004,-500.0,0.0002,2]
[337371918,1725633058016,-1113.21,0.0002,2]
[337371919,1725633058031,-5040.87,0.0002,2]
[337371920,1725633058041,-500.0,0.0002,2]
[337371921,1725633058050,-1367.3,0.0002,2]
[337371922,1725633058061,-1779.99,0.0002,2]
[337371923,1725633058070,-500.0,0.0002,2]
[337371924,1725633058080,-500.0,0.0002,2]
[337371925,1725633058089,-500.0,0.0002,2]
[337371926,1725633058099,-500.0,0.0002,2]
[337371927,1725633058108,-2052.33,0.0002,2]
[337371928,1725633058118,-894.29,0.0002,2]
[337371929,1725633058128,-1835.81,0.0002,2]
[337371930,1725633058139,-865.203504,0.0002,2]
[337371931,1725633058149,-500.0,0.0002,2]
[337371932,1725633058159,-2311.24,0.0002,2]
[337371933,1725633058169,-500.0,0.0002,2]
[337371934,1725633058179,-500.0,0.0002,2]
[337371935,1725633058190,-865.203504,0.0002,2]
[337371936,1725633058200,-191.453808,0.0002,2]
[337371937,1725633058209,-500.0,0.0002,2]
[337371938,1725633058219,-1904.19,0.0002,2]
[337371939,1725633058229,-191.453808,0.0002,2]
[337371940,1725633058239,-825.48,0.0002,2]
[337371941,1725633058249,-151.0,0.0002,2]
[337371942,1725633058258,-500.0,0.0002,2]
[337371943,1725633058268,-500.0,0.0002,2]
[337371944,1725633058279,-500.0,0.0002,2]
[337371945,1725633058289,-1074.86,0.0002,2]
[337371946,1725633058298,-500.0,0.0002,2]
[337371947,1725633058307,-539.08,0.0002,2]
[337371948,1725633058316,-1410.65,0.0002,2]
[337371949,1725633058325,-500.0,0.0002,2]
[337371950,1725633058335,-500.0,0.0002,2]
[337371951,1725633058345,-500.0,0.0002,2]
[337371952,1725633058355,-1156.0,0.0002,2]
[337371953,1725633058365,-1951.7,0.0002,2]
[337371954,1725633058374,-151.0,0.0002,2]
[337371955,1725633058383,-1221.14,0.0002,2]
[337371956,1725633058392,-1908.07,0.0002,2]
[337371957,1725633058401,-500.0,0.0002,2]
[337371958,1725633058411,-1392.43,0.0002,2]
[337371959,1725633058420,-500.0,0.0002,2]
[337371960,1725633058429,-151.0,0.0002,2]
[337371961,1725633058439,-965.53,0.0002,2]
[337371962,1725633058449,-500.0,0.0002,2]
[337371963,1725633058458,-1278.34,0.0002,2]
[337371964,1725633058467,-531.15060596,0.0002,2]
[337371965,1725633058476,-702.2,0.0002,2]
[337371966,1725633058485,-1529.39,0.0002,2]
[337371967,1725633058495,-1145.58,0.0002,2]
[337371968,1725633058504,-500.0,0.0002,2]
[337371969,1725633058513,-500.0,0.0002,2]
[337371970,1725633058525,-500.0,0.0002,2]
[337371971,1725633058534,-500.0,0.0002,2]
[337371972,1725633058544,-259.92983002,0.0002,2]
[337371973,1725633058553,-799.46,0.0002,2]
[337371974,1725633058563,-1543.19,0.0002,2]
[337371975,1725633058572,-3100.43,0.0002,2]
[337371976,1725633058581,-500.0,0.0002,2]
[337371977,1725633058590,-40128.9211996,0.0002,2]
[337371978,1725633058599,-963.32,0.0002,2]
[337371979,1725633058610,-500.0,0.0002,2]
[337371980,1725633058621,-500.0,0.0002,2]
[337371981,1725633058631,-500.0,0.0002,2]
[337371982,1725633058640,-500.0,0.0002,2]
[337371983,1725633058649,-151.0,0.0002,2]
[337371984,1725633058659,-500.0,0.0002,2]
[337371985,1725633058669,-763.75,0.0002,2]
[337371986,1725633058678,-151.0,0.0002,2]
[337371987,1725633058687,-1876.47,0.0002,2]
[337371988,1725633058696,-895.81,0.0002,2]
[337371989,1725633058705,-2191.72,0.0002,2]
[337371990,1725633058715,-968.67,0.0002,2]
[337371991,1725633058725,-26723.9,0.0002,2]
[337371992,1725633058735,-655.35,0.0002,2]
[337371993,1725633058744,-563.11,0.0002,2]
[337371994,1725633058753,-589.03,0.0002,2]
[337371995,1725633058762,-692.56,0.0002,2]
[337371996,1725633058771,-500.0,0.0002,2]
[337371997,1725633058780,-500.0,0.0002,2]
[337371998,1725633058790,-860.98,0.0002,2]
[337371999,1725633058799,-1390.31,0.0002,2]
[337372000,1725633058808,-2071.2,0.0002,2]
[337372001,1725633058817,-500.0,0.0002,2]
[337372002,1725633058827,-151.0,0.0002,2]
[337372003,1725633058836,-2158.41,0.0002,2]
[337372004,1725633058846,-1100.83,0.0002,2]
[337372005,1725633058855,-2239.96,0.0002,2]
[337372006,1725633058865,-500.0,0.0002,2]
[337372007,1725633058874,-500.0,0.0002,2]
[337372008,1725633058884,-807.14,0.0002,2]
[337372009,1725633058893,-650.79,0.0002,2]
[337372010,1725633058902,-500.0,0.0002,2]
[337372011,1725633058912,-151.0,0.0002,2]
[337372012,1725633058925,-844.65,0.0002,2]
[337372013,1725633058934,-500.0,0.0002,2]
[337372014,1725633058943,-151.0,0.0002,2]
[337372015,1725633058953,-500.0,0.0002,2]
[337372016,1725633058962,-690.63,0.0002,2]
[337372017,1725633058971,-500.0,0.0002,2]
[337372018,1725633058981,-500.0,0.0002,2]
[337372019,1725633058990,-2162.49,0.0002,2]
[337372020,1725633059001,-500.0,0.0002,2]
[337372021,1725633059012,-1964.97,0.0002,2]
[337372022,1725633059021,-151.0,0.0002,2]
[337372023,1725633059031,-2511.003872,0.0002,2]
[337372024,1725633059040,-500.0,0.0002,2]
[337372025,1725633059049,-2354.95,0.0002,2]
[337372026,1725633059058,-1852.49,0.0002,2]
[337372027,1725633059067,-2511.003872,0.0002,2]
[337372028,1725633059076,-2259.42,0.0002,2]
[337372029,1725633059085,-500.0,0.0002,2]
[337372030,1725633059095,-2207.22,0.0002,2]
[337372031,1725633059104,-500.0,0.0002,2]
[337372032,1725633059114,-500.0,0.0002,2]
[337372033,1725633059123,-532.06,0.0002,2]
[337372034,1725633059132,-721.34,0.0002,2]
[337372035,1725633059141,-500.0,0.0002,2]
[337372036,1725633059152,-2347.82,0.0002,2]
[337372037,1725633059161,-500.0,0.0002,2]
[337372038,1725633059171,-500.0,0.0002,2]
[337372039,1725633059180,-500.0,0.0002,2]
[337372040,1725633059192,-1078.21,0.0002,2]
[337372041,1725633059201,-1767.21,0.0002,2]
[337372042,1725633059211,-500.0,0.0002,2]
[337372043,1725633059223,-1128.62,0.0002,2]
[337372044,1725633059232,-50341.44,0.0002,2]
[337372045,1725633059242,-151.0,0.0002,2]
[337372046,1725633059251,-151.0,0.0002,2]
[337372047,1725633059261,-1105.27,0.0002,2]
[337372048,1725633059272,-500.0,0.0002,2]
[337372049,1725633059282,-151.0,0.0002,2]
[337372050,1725633059291,-151.0,0.0002,2]
[337372051,1725633059302,-44627.42,0.0002,2]
[337372052,1725633059311,-500.0,0.0002,2]
[337372053,1725633059322,-1400.82,0.0002,2]
[337372054,1725633059333,-2862.51,0.0002,2]
[337372055,1725633059343,-500.0,0.0002,2]
[337372056,1725633059352,-500.0,0.0002,2]
[337372057,1725633059362,-549.29,0.0002,2]
[337372058,1725633059372,-500.0,0.00020273,2]
[337372059,1725633059381,-500.0,0.00020273,2]
[337372060,1725633059391,-151.0,0.00020273,2]
[337372061,1725633059400,-160.733394,0.00020273,2]
[337372062,1725633059412,-500.0,0.00020273,2]
[337372063,1725633059423,-160.733394,0.00020273,2]
[337372064,1725633059434,-275.205914,0.00020273,2]
[337372065,1725633059443,-556.09,0.00020273,2]
[337372066,1725633059454,-500.0,0.00020273,2]
[337372067,1725633059466,-500.0,0.00020273,2]
[337372068,1725633059475,-500.0,0.00020273,2]
[337372069,1725633059485,-402.37843442,0.00020273,2]
[337372070,1725633059494,-500.0,0.00020273,2]
[337372071,1725633059508,-500.0,0.00020273,2]
[337372072,1725633059518,-615.56,0.00020273,2]
[337372073,1725633059532,-151.0,0.00020273,2]
[337372074,1725633059543,-500.0,0.00020273,2]
[337372075,1725633059554,-1254.49,0.00020273,2]
[337372076,1725633059565,-500.0,0.00020273,2]
[337372077,1725633059574,-500.0,0.00020273,2]
[337372078,1725633059583,-500.0,0.00020273,2]
[337372079,1725633059592,-500.0,0.00020273,2]
[337372080,1725633059602,-500.0,0.00020273,2]
[337372081,1725633059611,-500.0,0.00020273,2]
[337372082,1725633059622,-500.0,0.00020273,2]
[337372083,1725633059636,-1001.98,0.00020273,2]
[337372084,1725633059645,-500.0,0.00020273,2]
[337372085,1725633059655,-500.0,0.00020273,2]
[337372086,1725633059665,-151.0,0.00020273,2]
[337372087,1725633059675,-500.0,0.00020273,2]
[337372088,1725633059684,-574.3,0.00020273,2]
[337372089,1725633059694,-500.0,0.00020273,2]
[337372090,1725633059705,-500.0,0.00020273,2]
[337372091,1725633059716,-500.0,0.00020273,2]
[337372092,1725633059729,-500.0,0.00020273,2]
[337372093,1725633059738,-500.0,0.00020273,2]
[337372094,1725633059750,-500.0,0.00020273,2]
[337372095,1725633059761,-500.0,0.00020273,2]
[337372096,1725633059772,-414.80054113,0.00020273,2]
[337372097,1725633059782,-540.60300977,0.00020273,2]
[337372098,1725633059791,-500.0,0.00020273,2]
[337372099,1725633059801,-1066.78,0.00020273,2]
[337372100,1725633059810,-500.0,0.00020273,2]
[337372101,1725633059819,-679.51,0.00020273,2]
[337372102,1725633059829,-500.0,0.00020273,2]
[337372103,1725633059839,-500.0,0.00020273,2]
[337372104,1725633059849,-1480.16,0.00020273,2]
[337372105,1725633059859,-500.0,0.00020273,2]
[337372106,1725633059869,-500.0,0.00020273,2]
[337372107,1725633059879,-533.57,0.00020273,2]
[337372108,1725633059889,-500.0,0.00020273,2]
[337372109,1725633059899,-500.0,0.00020273,2]
[337372110,1725633059910,-500.0,0.00020273,2]
[337372111,1725633059922,-939.26,0.00020273,2]
[337372112,1725633059932,-570.84,0.00020273,2]
[337372113,1725633059943,-522.66,0.00020273,2]
[337372114,1725633059953,-151.0,0.00020273,2]
[337372115,1725633059964,-500.0,0.00020273,2]
[337372116,1725633059975,-960.52,0.00020273,2]
[337372117,1725633059985,-530.57,0.00020273,2]
[337372118,1725633059999,-548.63,0.00020273,2]
[337372119,1725633060009,-500.0,0.00020273,2]
[337372120,1725633060022,-500.0,0.00020273,2]
[337372121,1725633060032,-500.0,0.00020273,2]
[337372122,1725633060042,-500.0,0.00020273,2]
[337372123,1725633060052,-516.52,0.00020273,2]
[337372124,1725633060062,-340.32364649,0.00020273,2]
[337372125,1725633060073,-567.46341613,0.00020273,2]
[337372126,1725633060083,-151.0,0.00020273,2]
[337372127,1725633060093,-500.0,0.00020273,2]
[337372128,1725633060103,-500.0,0.00020273,2]
[337372129,1725633060112,-500.0,0.00020273,2]
[337372130,1725633060121,-1450.39,0.00020273,2]
[337372131,1725633060131,-613.14944031,0.00020273,2]
[337372132,1725633060142,-500.0,0.00020273,2]
[337372133,1725633060151,-500.0,0.00020273,2]
[337372134,1725633060161,-784.65,0.00020273,2]
[337372135,1725633060170,-500.0,0.00020273,2]
[337372136,1725633060181,-500.0,0.00020273,2]
[337372137,1725633060191,-1351.9,0.00020273,2]
[337372138,1725633060202,-500.0,0.00020273,2]
[337372139,1725633060212,-626.01,0.00020273,2]
[337372140,1725633060222,-500.0,0.00020273,2]
[337372141,1725633060231,-1291.72,0.00020273,2]
[337372142,1725633060241,-572.81,0.00020273,2]
[337372143,1725633060251,-456.68022728,0.00020273,2]
[337372144,1725633060260,-151.0,0.00020273,2]
[337372145,1725633060273,-569.27,0.00020273,2]
[337372146,1725633060284,-500.0,0.00020273,2]
[337372147,1725633060294,-1369.609796,0.00020273,2]
[337372148,1725633060304,-1369.609796,0.00020273,2]
[337372149,1725633060314,-500.0,0.00020273,2]
[337372150,1725633060325,-151.0,0.00020273,2]
[337372151,1725633060334,-500.0,0.00020273,2]
[337372152,1725633060344,-670.98,0.00020273,2]
[337372153,1725633060354,-500.0,0.00020273,2]
[337372154,1725633060364,-151.0,0.00020273,2]
[337372155,1725633060374,-540.59,0.00020273,2]
[337372156,1725633060384,-1013.06,0.00020273,2]
[337372157,1725633060394,-503.06,0.00020273,2]
[337372158,1725633060404,-500.0,0.00020273,2]
[337372159,1725633060414,-542.06,0.00020273,2]
[337372160,1725633060425,-669.88,0.00020273,2]
[337372161,1725633060435,-606.31,0.00020273,2]
[337372162,1725633060444,-500.0,0.00020273,2]
[337372163,1725633060454,-500.0,0.00020273,2]
[337372164,1725633060464,-206.369492,0.00020273,2]
[337372165,1725633060474,-206.369492,0.00020273,2]
[337372166,1725633060483,-500.0,0.00020273,2]